[Event "Early-Titled-Tuesday-Blitz-February-27-2024"]
[Site "Chess.com"]
[Date "2024.02.27"]
[Round "8"]
[White "karinachess1"]
[Black "davigator"]
[Result "1-0"]
[WhiteElo "2610"]
[BlackElo "2399"]
[TimeControl "180+1"]
[EndTime "9:26:28 PST"]
[Termination "karinachess1 won by resignation"]

1. d4 {[%clk 0:03:00.9]} 1... Nf6 {[%clk 0:02:59.3]} 2. c3 {[%clk 0:03:01]} 2...
d5 {[%clk 0:02:56.2]} 3. Nf3 {[%clk 0:03:01]} 3... c6 {[%clk 0:02:56.4]} 4. Bf4
{[%clk 0:03:00.8]} 4... Bf5 {[%clk 0:02:56.4]} 5. e3 {[%clk 0:02:59.9]} 5... e6
{[%clk 0:02:55.5]} 6. Bd3 {[%clk 0:02:59.6]} 6... Bg6 {[%clk 0:02:54.5]} 7. Ne5
{[%clk 0:02:58.4]} 7... Nfd7 {[%clk 0:02:48.6]} 8. Nxg6 {[%clk 0:02:43.7]} 8...
hxg6 {[%clk 0:02:48]} 9. Qg4 {[%clk 0:02:44.4]} 9... Nf6 {[%clk 0:02:47.6]} 10.
Qe2 {[%clk 0:02:44.8]} 10... Bd6 {[%clk 0:02:44.9]} 11. Nd2 {[%clk 0:02:44.7]}
11... Qc7 {[%clk 0:02:42.9]} 12. Bxd6 {[%clk 0:02:33.4]} 12... Qxd6 {[%clk
0:02:42.6]} 13. h3 {[%clk 0:02:33.4]} 13... Nbd7 {[%clk 0:02:42.1]} 14. c4
{[%clk 0:02:30.6]} 14... e5 {[%clk 0:02:41.2]} 15. cxd5 {[%clk 0:02:29.2]} 15...
cxd5 {[%clk 0:02:35.8]} 16. dxe5 {[%clk 0:02:28.3]} 16... Nxe5 {[%clk 0:02:35]}
17. Bb5+ {[%clk 0:02:22.8]} 17... Ke7 {[%clk 0:02:33.7]} 18. f4 {[%clk
0:02:07.7]} 18... Nc6 {[%clk 0:02:30]} 19. O-O {[%clk 0:02:07.7]} 19... a6
{[%clk 0:02:29.4]} 20. Bxc6 {[%clk 0:02:02.5]} 20... bxc6 {[%clk 0:02:28.7]} 21.
Rac1 {[%clk 0:02:02.3]} 21... Rhe8 {[%clk 0:02:26.6]} 22. Nb3 {[%clk 0:01:55.8]}
22... Kf8 {[%clk 0:02:25.7]} 23. Qd3 {[%clk 0:01:50.8]} 23... a5 {[%clk
0:02:23.3]} 24. Rc2 {[%clk 0:01:49.6]} 24... a4 {[%clk 0:02:22.9]} 25. Nc5
{[%clk 0:01:49.9]} 25... Ne4 {[%clk 0:02:20.2]} 26. Rfc1 {[%clk 0:01:47.6]}
26... Nxc5 {[%clk 0:02:16.9]} 27. Rxc5 {[%clk 0:01:48.5]} 27... Qf6 {[%clk
0:02:10.2]} 28. Qa3 {[%clk 0:01:36.9]} 28... Re6 {[%clk 0:02:09]} 29. Rxc6+
{[%clk 0:01:32.6]} 29... Kg8 {[%clk 0:02:09.1]} 30. Rc8+ {[%clk 0:01:29.2]}
30... Re8 {[%clk 0:02:02.9]} 31. Rxa8 {[%clk 0:01:17.8]} 31... Rxa8 {[%clk
0:02:01.2]} 32. Qc3 {[%clk 0:01:15.4]} 32... Qf5 {[%clk 0:01:49]} 33. Qd4 {[%clk
0:01:02]} 33... a3 {[%clk 0:01:46.5]} 34. b4 {[%clk 0:00:54.8]} 34... g5 {[%clk
0:01:43.8]} 35. b5 {[%clk 0:00:46.8]} 35... gxf4 {[%clk 0:01:43.4]} 36. exf4
{[%clk 0:00:47.7]} 36... Re8 {[%clk 0:01:38.3]} 37. b6 {[%clk 0:00:35.5]} 37...
Re4 {[%clk 0:01:33]} 38. Qc5 {[%clk 0:00:34.6]} 38... Re2 {[%clk 0:01:25.9]} 39.
Qc8+ {[%clk 0:00:34.1]} 39... Qxc8 {[%clk 0:01:24.9]} 40. Rxc8+ {[%clk 0:00:35]}
40... Kh7 {[%clk 0:01:23.9]} 41. b7 {[%clk 0:00:35.5]} 41... Rxa2 {[%clk
0:01:24.5]} 42. b8=Q {[%clk 0:00:35.6]} 42... Ra1+ {[%clk 0:01:24]} 43. Kh2
{[%clk 0:00:35.7]} 43... a2 {[%clk 0:01:24.7]} 44. Rh8+ {[%clk 0:00:35.6]} 44...
Kg6 {[%clk 0:01:23.8]} 45. Qb2 {[%clk 0:00:26.1]} 1-0

[Event "Early-Titled-Tuesday-Blitz-February-27-2024"]
[Site "Chess.com"]
[Date "2024.02.27"]
[Round "8"]
[White "Kostukov_Alex"]
[Black "ajedrezsinlimites"]
[Result "0-1"]
[WhiteElo "2370"]
[BlackElo "2563"]
[TimeControl "180+1"]
[EndTime "9:26:30 PST"]
[Termination "ajedrezsinlimites won by resignation"]

1. g3 {[%clk 0:02:56]} 1... d5 {[%clk 0:02:59.2]} 2. Bg2 {[%clk 0:02:55.5]} 2...
Nf6 {[%clk 0:03:00.1]} 3. d3 {[%clk 0:02:55.6]} 3... e6 {[%clk 0:03:01]} 4. e4
{[%clk 0:02:55.8]} 4... b6 {[%clk 0:02:59.8]} 5. e5 {[%clk 0:02:55.4]} 5... Nfd7
{[%clk 0:02:59.6]} 6. Nf3 {[%clk 0:02:49.2]} 6... c5 {[%clk 0:02:59.1]} 7. O-O
{[%clk 0:02:49.8]} 7... Bb7 {[%clk 0:02:59.2]} 8. c4 {[%clk 0:02:50.3]} 8... d4
{[%clk 0:02:55.7]} 9. Bf4 {[%clk 0:02:47.7]} 9... Nc6 {[%clk 0:02:54.7]} 10. h4
{[%clk 0:02:47.6]} 10... h6 {[%clk 0:02:54.4]} 11. Qe2 {[%clk 0:02:46.2]} 11...
Be7 {[%clk 0:02:52.5]} 12. h5 {[%clk 0:02:46.2]} 12... g5 {[%clk 0:02:48.2]} 13.
hxg6 {[%clk 0:02:45.3]} 13... fxg6 {[%clk 0:02:48.6]} 14. g4 {[%clk 0:02:45.6]}
14... a6 {[%clk 0:02:39.7]} 15. Nbd2 {[%clk 0:02:43.9]} 15... g5 {[%clk
0:02:36]} 16. Bg3 {[%clk 0:02:42]} 16... Nf8 {[%clk 0:02:36.5]} 17. Ne4 {[%clk
0:02:20]} 17... Qd7 {[%clk 0:02:35.5]} 18. Nf6+ {[%clk 0:02:16.7]} 18... Bxf6
{[%clk 0:02:31.8]} 19. exf6 {[%clk 0:02:17.6]} 19... Ng6 {[%clk 0:02:31.4]} 20.
Ne5 {[%clk 0:01:54.1]} 20... Ncxe5 {[%clk 0:02:29.8]} 21. Bxe5 {[%clk 0:01:41]}
21... Bxg2 {[%clk 0:02:23]} 22. Kxg2 {[%clk 0:01:33.9]} 22... Qc6+ {[%clk
0:02:21]} 23. Kg3 {[%clk 0:01:23.8]} 23... O-O {[%clk 0:02:07.4]} 24. Rae1
{[%clk 0:00:56.5]} 24... Rf7 {[%clk 0:02:00.9]} 25. f4 {[%clk 0:00:50.9]} 25...
gxf4+ {[%clk 0:01:57.8]} 26. Bxf4 {[%clk 0:00:50.8]} 26... Rxf6 {[%clk 0:01:45]}
27. Bxh6 {[%clk 0:00:50.3]} 27... e5 {[%clk 0:01:45.3]} 28. g5 {[%clk
0:00:43.4]} 28... Rxf1 {[%clk 0:01:39.7]} 29. Rxf1 {[%clk 0:00:42.5]} 29... Re8
{[%clk 0:01:32.3]} 30. Rf6 {[%clk 0:00:40.7]} 30... Nf4 {[%clk 0:01:30.3]} 31.
Rxc6 {[%clk 0:00:30.9]} 31... Nxe2+ {[%clk 0:01:29.6]} 32. Kg4 {[%clk 0:00:31]}
32... e4 {[%clk 0:01:22.7]} 33. dxe4 {[%clk 0:00:30.9]} 33... d3 {[%clk
0:01:22.8]} 34. Kf5 {[%clk 0:00:18.6]} 34... Nd4+ {[%clk 0:01:18.3]} 35. Kg4
{[%clk 0:00:09.1]} 35... Nxc6 {[%clk 0:01:17.8]} 0-1

[Event "Early-Titled-Tuesday-Blitz-February-27-2024"]
[Site "Chess.com"]
[Date "2024.02.27"]
[Round "8"]
[White "Maikrosoft63"]
[Black "GMAkobianSTL"]
[Result "0-1"]
[WhiteElo "2614"]
[BlackElo "2827"]
[TimeControl "180+1"]
[EndTime "9:26:34 PST"]
[Termination "GMAkobianSTL won by resignation"]

1. e4 {[%clk 0:03:00.9]} 1... d6 {[%clk 0:03:00.1]} 2. d4 {[%clk 0:03:01.1]}
2... Nf6 {[%clk 0:03:00.4]} 3. Nc3 {[%clk 0:03:01.3]} 3... c6 {[%clk 0:03:00.9]}
4. a4 {[%clk 0:03:01]} 4... Qc7 {[%clk 0:03:00.7]} 5. g3 {[%clk 0:02:58.1]} 5...
e5 {[%clk 0:03:00.5]} 6. Nge2 {[%clk 0:02:58.1]} 6... Be7 {[%clk 0:03:00.5]} 7.
Bg2 {[%clk 0:02:58.3]} 7... h5 {[%clk 0:03:00.3]} 8. h3 {[%clk 0:02:57.7]} 8...
Nbd7 {[%clk 0:02:58.1]} 9. O-O {[%clk 0:02:56.5]} 9... b6 {[%clk 0:02:57.2]} 10.
Be3 {[%clk 0:02:56.2]} 10... a6 {[%clk 0:02:57.1]} 11. Qd2 {[%clk 0:02:55.4]}
11... Bb7 {[%clk 0:02:57]} 12. Rad1 {[%clk 0:02:53.9]} 12... b5 {[%clk
0:02:56.9]} 13. Rfe1 {[%clk 0:02:49.3]} 13... O-O {[%clk 0:02:50.6]} 14. f4
{[%clk 0:02:45.2]} 14... Rad8 {[%clk 0:02:49.5]} 15. Kh2 {[%clk 0:02:43.8]}
15... Rfe8 {[%clk 0:02:48.1]} 16. Bf3 {[%clk 0:02:23.4]} 16... Bf8 {[%clk
0:02:46.8]} 17. Qc1 {[%clk 0:02:09.2]} 17... b4 {[%clk 0:02:46.5]} 18. Na2
{[%clk 0:02:08.6]} 18... exd4 {[%clk 0:02:46.6]} 19. Nxd4 {[%clk 0:02:05.1]}
19... c5 {[%clk 0:02:46.9]} 20. Nf5 {[%clk 0:02:00.9]} 20... Bxe4 {[%clk
0:02:42.1]} 21. Bxe4 {[%clk 0:01:58.7]} 21... Rxe4 {[%clk 0:02:41.6]} 22. Bf2
{[%clk 0:01:56]} 22... Rde8 {[%clk 0:02:37.8]} 23. Qd2 {[%clk 0:01:55.2]} 23...
d5 {[%clk 0:02:36.3]} 24. Nc1 {[%clk 0:01:52.8]} 24... g6 {[%clk 0:02:35.2]} 25.
Nh4 {[%clk 0:01:50.7]} 25... Rxe1 {[%clk 0:02:29.6]} 26. Rxe1 {[%clk 0:01:46.8]}
26... Rxe1 {[%clk 0:02:29.2]} 27. Qxe1 {[%clk 0:01:44.9]} 27... Ne4 {[%clk
0:02:28.8]} 28. Nf3 {[%clk 0:01:31.3]} 28... Bg7 {[%clk 0:02:25]} 29. b3 {[%clk
0:01:29]} 29... a5 {[%clk 0:02:24.9]} 30. Qe2 {[%clk 0:01:16.1]} 30... Qc6
{[%clk 0:02:22.5]} 31. Bg1 {[%clk 0:01:12.8]} 31... Bf6 {[%clk 0:02:14.1]} 32.
Nd2 {[%clk 0:01:07]} 32... Nxd2 {[%clk 0:02:12.7]} 33. Qxd2 {[%clk 0:01:07.1]}
33... Qe6 {[%clk 0:02:07.3]} 34. Qe2 {[%clk 0:00:55.1]} 34... Qxe2+ {[%clk
0:02:02.4]} 35. Nxe2 {[%clk 0:00:56]} 35... Kf8 {[%clk 0:02:02.4]} 36. g4 {[%clk
0:00:53.4]} 36... hxg4 {[%clk 0:02:02]} 37. hxg4 {[%clk 0:00:54.3]} 37... Ke7
{[%clk 0:02:02.4]} 38. Kg2 {[%clk 0:00:54.8]} 38... Kd6 {[%clk 0:02:02.5]} 39.
Kf3 {[%clk 0:00:55.2]} 39... Bg7 {[%clk 0:02:01.2]} 40. f5 {[%clk 0:00:46.4]}
40... gxf5 {[%clk 0:01:57.2]} 41. gxf5 {[%clk 0:00:46.5]} 41... Be5 {[%clk
0:01:57.2]} 42. Kg4 {[%clk 0:00:42.5]} 42... Nf6+ {[%clk 0:01:56.5]} 43. Kg5
{[%clk 0:00:42.6]} 43... Ne4+ {[%clk 0:01:55]} 44. Kh6 {[%clk 0:00:41.1]} 44...
Ke7 {[%clk 0:01:54.2]} 45. Nc1 {[%clk 0:00:21]} 45... Kf6 {[%clk 0:01:51.5]} 46.
Nd3 {[%clk 0:00:21.5]} 46... Bd6 {[%clk 0:01:51.7]} 47. Be3 {[%clk 0:00:17.2]}
47... Kxf5 {[%clk 0:01:51.4]} 48. Kg7 {[%clk 0:00:17.6]} 48... Ke6 {[%clk
0:01:51]} 49. Bf4 {[%clk 0:00:16.3]} 49... c4 {[%clk 0:01:50.1]} 50. Bxd6 {[%clk
0:00:09.5]} 50... cxd3 {[%clk 0:01:50.2]} 0-1

[Event "Early-Titled-Tuesday-Blitz-February-27-2024"]
[Site "Chess.com"]
[Date "2024.02.27"]
[Round "8"]
[White "vugarrasulov"]
[Black "Zohid6"]
[Result "0-1"]
[WhiteElo "2996"]
[BlackElo "2873"]
[TimeControl "180+1"]
[EndTime "9:26:37 PST"]
[Termination "Zohid6 won on time"]

1. d4 {[%clk 0:03:00.9]} 1... e6 {[%clk 0:02:59.9]} 2. Nf3 {[%clk 0:02:59.9]}
2... Nf6 {[%clk 0:02:59.2]} 3. g3 {[%clk 0:02:59.3]} 3... c5 {[%clk 0:02:58.8]}
4. Bg2 {[%clk 0:02:59.2]} 4... cxd4 {[%clk 0:02:59.2]} 5. O-O {[%clk 0:02:59.1]}
5... d5 {[%clk 0:02:59.8]} 6. Nxd4 {[%clk 0:02:55]} 6... e5 {[%clk 0:02:59]} 7.
Nb3 {[%clk 0:02:48.8]} 7... Be6 {[%clk 0:02:58.1]} 8. Bg5 {[%clk 0:02:48.7]}
8... Nbd7 {[%clk 0:02:57.5]} 9. f4 {[%clk 0:02:41.1]} 9... exf4 {[%clk
0:02:56.5]} 10. gxf4 {[%clk 0:02:40.4]} 10... h6 {[%clk 0:02:54.6]} 11. Bh4
{[%clk 0:02:40.4]} 11... g5 {[%clk 0:02:50.4]} 12. Bg3 {[%clk 0:02:40.6]} 12...
gxf4 {[%clk 0:02:48.5]} 13. Bxf4 {[%clk 0:02:41.5]} 13... Rg8 {[%clk 0:02:38.3]}
14. Kh1 {[%clk 0:02:41.1]} 14... Nh5 {[%clk 0:02:38.1]} 15. Nc3 {[%clk
0:02:25.7]} 15... Nxf4 {[%clk 0:02:10.7]} 16. Rxf4 {[%clk 0:02:26.6]} 16... Rxg2
{[%clk 0:02:10.8]} 17. Nd4 {[%clk 0:01:40.8]} 17... Rg6 {[%clk 0:01:57.3]} 18.
Nxe6 {[%clk 0:01:30.3]} 18... fxe6 {[%clk 0:01:58.2]} 19. Nxd5 {[%clk
0:01:09.6]} 19... exd5 {[%clk 0:01:32.1]} 20. Qxd5 {[%clk 0:01:10.5]} 20... Qg5
{[%clk 0:01:19.7]} 21. Rf5 {[%clk 0:00:49.9]} 21... Qg4 {[%clk 0:01:08.8]} 22.
Rd1 {[%clk 0:00:23.7]} 22... O-O-O {[%clk 0:01:02.3]} 23. Rf7 {[%clk 0:00:21.5]}
23... Rd6 {[%clk 0:00:56.6]} 0-1

[Event "Early-Titled-Tuesday-Blitz-February-27-2024"]
[Site "Chess.com"]
[Date "2024.02.27"]
[Round "8"]
[White "Supergiuly"]
[Black "chessamical"]
[Result "1-0"]
[WhiteElo "2328"]
[BlackElo "2151"]
[TimeControl "180+1"]
[EndTime "9:26:38 PST"]
[Termination "Supergiuly won on time"]

1. g3 {[%clk 0:03:00.9]} 1... d5 {[%clk 0:02:58.2]} 2. Nf3 {[%clk 0:03:01.8]}
2... Nc6 {[%clk 0:02:56.9]} 3. Bg2 {[%clk 0:03:02.3]} 3... e5 {[%clk 0:02:56]}
4. d3 {[%clk 0:03:02.7]} 4... Nf6 {[%clk 0:02:53]} 5. O-O {[%clk 0:03:02.4]}
5... Be6 {[%clk 0:02:50.1]} 6. b3 {[%clk 0:02:58.8]} 6... Qd7 {[%clk 0:02:46.3]}
7. Bb2 {[%clk 0:02:57]} 7... Bd6 {[%clk 0:02:43.9]} 8. c4 {[%clk 0:02:55.4]}
8... d4 {[%clk 0:02:36.6]} 9. e3 {[%clk 0:02:52.5]} 9... dxe3 {[%clk 0:02:35.8]}
10. fxe3 {[%clk 0:02:53.4]} 10... O-O-O {[%clk 0:02:09.2]} 11. Nc3 {[%clk
0:02:46.9]} 11... Bc5 {[%clk 0:02:08.3]} 12. d4 {[%clk 0:02:04.7]} 12... exd4
{[%clk 0:02:02.1]} 13. exd4 {[%clk 0:02:05.6]} 13... Nxd4 {[%clk 0:02:01.7]} 14.
Kh1 {[%clk 0:02:02.3]} 14... Ng4 {[%clk 0:01:25.5]} 15. Ne4 {[%clk 0:01:50.7]}
15... Ne3 {[%clk 0:00:52.3]} 16. Nxc5 {[%clk 0:00:53.7]} 16... Nxd1 {[%clk
0:00:51.6]} 17. Nxd7 {[%clk 0:00:53.8]} 17... Nxb2 {[%clk 0:00:51.8]} 18. Nxd4
{[%clk 0:00:48.2]} 18... Rxd7 {[%clk 0:00:33.4]} 19. Nxe6 {[%clk 0:00:48.1]}
19... fxe6 {[%clk 0:00:33]} 20. Bh3 {[%clk 0:00:48.3]} 20... Re8 {[%clk
0:00:28.5]} 21. Rae1 {[%clk 0:00:47.2]} 21... Rde7 {[%clk 0:00:09.9]} 22. Rf3
{[%clk 0:00:44.7]} 22... b6 {[%clk 0:00:01.3]} 23. Rb1 {[%clk 0:00:44.3]} 1-0

[Event "Early-Titled-Tuesday-Blitz-February-27-2024"]
[Site "Chess.com"]
[Date "2024.02.27"]
[Round "8"]
[White "aljado"]
[Black "tylityli"]
[Result "0-1"]
[WhiteElo "2046"]
[BlackElo "2289"]
[TimeControl "180+1"]
[EndTime "9:26:39 PST"]
[Termination "tylityli won by resignation"]

1. e4 {[%clk 0:03:00.9]} 1... e5 {[%clk 0:02:58.3]} 2. Nf3 {[%clk 0:03:00.7]}
2... Nc6 {[%clk 0:02:57.9]} 3. Bb5 {[%clk 0:03:00]} 3... a6 {[%clk 0:02:57.7]}
4. Ba4 {[%clk 0:02:59.6]} 4... Nf6 {[%clk 0:02:57.6]} 5. O-O {[%clk 0:02:58.3]}
5... Be7 {[%clk 0:02:58]} 6. Re1 {[%clk 0:02:56.1]} 6... b5 {[%clk 0:02:58.1]}
7. Bb3 {[%clk 0:02:55.9]} 7... d6 {[%clk 0:02:58.8]} 8. c3 {[%clk 0:02:54.9]}
8... O-O {[%clk 0:02:58.9]} 9. h3 {[%clk 0:02:54.8]} 9... Nd7 {[%clk 0:02:58.3]}
10. d4 {[%clk 0:02:53.9]} 10... Bf6 {[%clk 0:02:58.6]} 11. Be3 {[%clk
0:02:48.7]} 11... Na5 {[%clk 0:02:57.6]} 12. Bc2 {[%clk 0:02:46.6]} 12... Nc4
{[%clk 0:02:58.2]} 13. b4 {[%clk 0:02:35.2]} 13... Nxe3 {[%clk 0:02:56.8]} 14.
Rxe3 {[%clk 0:02:32.2]} 14... c5 {[%clk 0:02:54.7]} 15. bxc5 {[%clk 0:02:28.1]}
15... dxc5 {[%clk 0:02:54.6]} 16. d5 {[%clk 0:02:28.4]} 16... c4 {[%clk
0:02:53.2]} 17. a4 {[%clk 0:02:23.5]} 17... Bb7 {[%clk 0:02:52.4]} 18. axb5
{[%clk 0:02:22.7]} 18... axb5 {[%clk 0:02:52.7]} 19. Nbd2 {[%clk 0:02:21.2]}
19... Nc5 {[%clk 0:02:51.8]} 20. Nh2 {[%clk 0:02:10.4]} 20... Be7 {[%clk
0:02:39.1]} 21. Ng4 {[%clk 0:02:08.6]} 21... Bd6 {[%clk 0:02:38.8]} 22. Rg3
{[%clk 0:02:03.5]} 22... Kh8 {[%clk 0:02:36.6]} 23. Nf3 {[%clk 0:01:53.5]} 23...
Rxa1 {[%clk 0:02:23.1]} 24. Qxa1 {[%clk 0:01:50.5]} 24... f6 {[%clk 0:02:19.2]}
25. Nh4 {[%clk 0:01:42]} 25... Bc8 {[%clk 0:02:17.9]} 26. Qa7 {[%clk 0:01:34.6]}
26... Qc7 {[%clk 0:02:16.3]} 27. Qxc7 {[%clk 0:01:32.1]} 27... Bxc7 {[%clk
0:02:16]} 28. Ne3 {[%clk 0:01:29.2]} 28... g6 {[%clk 0:02:12]} 29. Rf3 {[%clk
0:01:07.2]} 29... Bd6 {[%clk 0:02:05.3]} 30. Ng4 {[%clk 0:01:06]} 30... Kg7
{[%clk 0:02:02.5]} 31. Re3 {[%clk 0:00:56.6]} 31... Bd7 {[%clk 0:02:00.7]} 32.
Re1 {[%clk 0:00:49.9]} 32... Ra8 {[%clk 0:02:00]} 33. Ne3 {[%clk 0:00:42.8]}
33... Ra3 {[%clk 0:01:56.3]} 34. Nd1 {[%clk 0:00:42.3]} 34... Ra2 {[%clk
0:01:50.7]} 35. Bb1 {[%clk 0:00:41.1]} 35... Ra1 {[%clk 0:01:50.7]} 36. Bc2
{[%clk 0:00:37.4]} 36... Nd3 {[%clk 0:01:44.4]} 37. Bxd3 {[%clk 0:00:34.7]}
37... cxd3 {[%clk 0:01:45.3]} 38. Nf3 {[%clk 0:00:33.2]} 38... b4 {[%clk
0:01:40.1]} 39. cxb4 {[%clk 0:00:30.2]} 39... Bxb4 {[%clk 0:01:39.5]} 40. Rf1
{[%clk 0:00:30.2]} 40... d2 {[%clk 0:01:34.1]} 41. Ne3 {[%clk 0:00:23.4]} 41...
Re1 {[%clk 0:01:24.2]} 42. Nc2 {[%clk 0:00:17]} 42... Rxf1+ {[%clk 0:01:23.8]}
0-1

[Event "Early-Titled-Tuesday-Blitz-February-27-2024"]
[Site "Chess.com"]
[Date "2024.02.27"]
[Round "8"]
[White "DefiantChair"]
[Black "Balla_Tamas"]
[Result "1-0"]
[WhiteElo "2613"]
[BlackElo "2425"]
[TimeControl "180+1"]
[EndTime "9:26:41 PST"]
[Termination "DefiantChair won by resignation"]

1. c4 {[%clk 0:02:55]} 1... c5 {[%clk 0:02:59.7]} 2. Nc3 {[%clk 0:02:52.9]} 2...
Nc6 {[%clk 0:02:59.5]} 3. g3 {[%clk 0:02:53]} 3... g6 {[%clk 0:02:57.6]} 4. Bg2
{[%clk 0:02:53.1]} 4... Bg7 {[%clk 0:02:58.1]} 5. Nf3 {[%clk 0:02:48]} 5... e6
{[%clk 0:02:56.8]} 6. O-O {[%clk 0:02:47.4]} 6... Nge7 {[%clk 0:02:57.3]} 7. e4
{[%clk 0:02:47.4]} 7... O-O {[%clk 0:02:56.3]} 8. d3 {[%clk 0:02:47.8]} 8... d6
{[%clk 0:02:56]} 9. Bg5 {[%clk 0:02:46.2]} 9... h6 {[%clk 0:02:51.9]} 10. Bd2
{[%clk 0:02:46.2]} 10... b6 {[%clk 0:02:44.2]} 11. Ne1 {[%clk 0:02:35.6]} 11...
Bb7 {[%clk 0:02:41.2]} 12. Nc2 {[%clk 0:02:34.2]} 12... Kh7 {[%clk 0:02:38.3]}
13. a3 {[%clk 0:02:32.3]} 13... Qd7 {[%clk 0:02:23.9]} 14. Rb1 {[%clk
0:02:21.8]} 14... a5 {[%clk 0:02:23.6]} 15. f4 {[%clk 0:02:14.9]} 15... f5
{[%clk 0:01:49]} 16. Kh1 {[%clk 0:02:02.2]} 16... e5 {[%clk 0:01:48.4]} 17. Nd5
{[%clk 0:01:59.1]} 17... Nxd5 {[%clk 0:01:46.3]} 18. cxd5 {[%clk 0:01:58.4]}
18... Nd4 {[%clk 0:01:46.4]} 19. Ne3 {[%clk 0:01:56.1]} 19... exf4 {[%clk
0:01:35.3]} 20. gxf4 {[%clk 0:01:54.6]} 20... Rae8 {[%clk 0:01:31.9]} 21. Nc4
{[%clk 0:01:49.3]} 21... fxe4 {[%clk 0:01:08.4]} 22. dxe4 {[%clk 0:01:48.5]}
22... Qd8 {[%clk 0:01:08.2]} 23. Qg4 {[%clk 0:01:32.2]} 23... Bc8 {[%clk
0:01:04.8]} 24. Qg3 {[%clk 0:01:27.7]} 24... Nb3 {[%clk 0:00:56.5]} 25. Qxb3
{[%clk 0:01:26.6]} 25... Qh4 {[%clk 0:00:42.3]} 26. Qg3 {[%clk 0:01:23.6]} 26...
Qe7 {[%clk 0:00:42.4]} 27. Nxb6 {[%clk 0:01:04.3]} 27... Ba6 {[%clk 0:00:40.5]}
28. Rfc1 {[%clk 0:01:03.7]} 28... Rb8 {[%clk 0:00:38.4]} 29. Nc4 {[%clk
0:01:01.1]} 29... a4 {[%clk 0:00:29.4]} 30. Bc3 {[%clk 0:00:57]} 30... Rb3
{[%clk 0:00:28.6]} 31. Na5 {[%clk 0:00:54]} 31... Rb7 {[%clk 0:00:21.1]} 32.
Nxb7 {[%clk 0:00:53.5]} 1-0

[Event "Early-Titled-Tuesday-Blitz-February-27-2024"]
[Site "Chess.com"]
[Date "2024.02.27"]
[Round "8"]
[White "Ariadna_Atreides"]
[Black "deepfear"]
[Result "1-0"]
[WhiteElo "2191"]
[BlackElo "1973"]
[TimeControl "180+1"]
[EndTime "9:26:46 PST"]
[Termination "Ariadna_Atreides won by resignation"]

1. d4 {[%clk 0:02:48.8]} 1... Nf6 {[%clk 0:02:58.1]} 2. Nf3 {[%clk 0:02:47.6]}
2... g6 {[%clk 0:02:58]} 3. c4 {[%clk 0:02:47.3]} 3... Bg7 {[%clk 0:02:57.8]} 4.
Nc3 {[%clk 0:02:47.9]} 4... d6 {[%clk 0:02:58.1]} 5. e4 {[%clk 0:02:48.2]} 5...
O-O {[%clk 0:02:58.1]} 6. h3 {[%clk 0:02:48]} 6... Nc6 {[%clk 0:02:56.2]} 7. Be3
{[%clk 0:02:43.5]} 7... e5 {[%clk 0:02:54.4]} 8. d5 {[%clk 0:02:42.6]} 8... Ne7
{[%clk 0:02:53.3]} 9. Bd3 {[%clk 0:02:39.2]} 9... Ne8 {[%clk 0:02:45]} 10. g4
{[%clk 0:02:32.6]} 10... f5 {[%clk 0:02:31.2]} 11. gxf5 {[%clk 0:02:24.1]} 11...
gxf5 {[%clk 0:02:31]} 12. Rg1 {[%clk 0:02:20.7]} 12... f4 {[%clk 0:02:29.7]} 13.
Bd2 {[%clk 0:02:20]} 13... Ng6 {[%clk 0:02:21.9]} 14. Ng5 {[%clk 0:02:13.5]}
14... Qe7 {[%clk 0:02:03.7]} 15. Nxh7 {[%clk 0:01:58.8]} 15... Kxh7 {[%clk
0:01:35.8]} 16. Qh5+ {[%clk 0:01:57.4]} 16... Kg8 {[%clk 0:01:36.3]} 17. Qxg6
{[%clk 0:01:50]} 17... Bxh3 {[%clk 0:01:27.1]} 18. O-O-O {[%clk 0:01:48.7]}
18... Qf6 {[%clk 0:01:22]} 19. Qh5 {[%clk 0:01:39.2]} 19... Bd7 {[%clk
0:01:13.4]} 20. Rg6 {[%clk 0:01:35.8]} 20... Qe7 {[%clk 0:01:01.5]} 21. Rh1
{[%clk 0:01:23.3]} 21... Nf6 {[%clk 0:00:50.4]} 22. Qh8+ {[%clk 0:01:19]} 22...
Kf7 {[%clk 0:00:50.5]} 23. Rxg7+ {[%clk 0:01:14.2]} 23... Ke8 {[%clk 0:00:48.7]}
24. Rxe7+ {[%clk 0:01:14.2]} 24... Kxe7 {[%clk 0:00:49.1]} 25. Qg7+ {[%clk
0:01:11]} 25... Rf7 {[%clk 0:00:49.3]} 26. Qh6 {[%clk 0:01:04.8]} 26... Rh7
{[%clk 0:00:31]} 27. Qxh7+ {[%clk 0:01:03.5]} 27... Nxh7 {[%clk 0:00:30.7]} 28.
Rxh7+ {[%clk 0:01:03.5]} 28... Kf6 {[%clk 0:00:27]} 29. Rxd7 {[%clk 0:01:02.9]}
29... Rg8 {[%clk 0:00:20.4]} 30. Rxc7 {[%clk 0:00:58]} 30... Rg1+ {[%clk
0:00:16.3]} 31. Kc2 {[%clk 0:00:56.9]} 31... Rg2 {[%clk 0:00:17]} 32. Be1 {[%clk
0:00:56.4]} 32... Rg1 {[%clk 0:00:13.5]} 33. Kd2 {[%clk 0:00:55.8]} 1-0

[Event "Early-Titled-Tuesday-Blitz-February-27-2024"]
[Site "Chess.com"]
[Date "2024.02.27"]
[Round "8"]
[White "Manukyan_Artak"]
[Black "aRk_iN"]
[Result "1-0"]
[WhiteElo "2476"]
[BlackElo "2248"]
[TimeControl "180+1"]
[EndTime "9:26:48 PST"]
[Termination "Manukyan_Artak won on time"]

1. e4 {[%clk 0:02:56.4]} 1... e5 {[%clk 0:02:59.8]} 2. Nf3 {[%clk 0:02:55.1]}
2... Nc6 {[%clk 0:02:59.9]} 3. d4 {[%clk 0:02:55.4]} 3... exd4 {[%clk
0:02:59.5]} 4. Nxd4 {[%clk 0:02:56.3]} 4... Nf6 {[%clk 0:02:59.5]} 5. Nxc6
{[%clk 0:02:56.4]} 5... bxc6 {[%clk 0:03:00.4]} 6. e5 {[%clk 0:02:56.8]} 6...
Qe7 {[%clk 0:03:00.6]} 7. Qe2 {[%clk 0:02:56.6]} 7... Nd5 {[%clk 0:03:00.7]} 8.
c4 {[%clk 0:02:57.5]} 8... Ba6 {[%clk 0:03:00.9]} 9. b3 {[%clk 0:02:57.7]} 9...
g6 {[%clk 0:03:01.2]} 10. g3 {[%clk 0:02:57.7]} 10... Bg7 {[%clk 0:02:54.9]} 11.
Bb2 {[%clk 0:02:55.3]} 11... O-O {[%clk 0:02:40]} 12. Bg2 {[%clk 0:02:48.1]}
12... Rae8 {[%clk 0:02:36.8]} 13. O-O {[%clk 0:02:39.4]} 13... d6 {[%clk
0:02:09.2]} 14. Qd2 {[%clk 0:02:07.7]} 14... Bxe5 {[%clk 0:02:01.9]} 15. Re1
{[%clk 0:02:02.9]} 15... Qf6 {[%clk 0:01:53.9]} 16. Rxe5 {[%clk 0:01:58.8]}
16... dxe5 {[%clk 0:01:20.5]} 17. cxd5 {[%clk 0:01:56.3]} 17... cxd5 {[%clk
0:01:20.5]} 18. Nc3 {[%clk 0:01:51.8]} 18... d4 {[%clk 0:01:17.3]} 19. Ne4
{[%clk 0:01:45.1]} 19... Qe7 {[%clk 0:01:14.6]} 20. a4 {[%clk 0:01:37.4]} 20...
f5 {[%clk 0:00:18.6]} 21. Ba3 {[%clk 0:01:33.5]} 21... Qf7 {[%clk 0:00:09.9]}
22. Ng5 {[%clk 0:01:30.7]} 22... Qxb3 {[%clk 0:00:07.8]} 23. Bxf8 {[%clk
0:01:30.6]} 23... Rxf8 {[%clk 0:00:07.9]} 24. Qa2 {[%clk 0:01:25]} 24... Qxa2
{[%clk 0:00:07.6]} 25. Rxa2 {[%clk 0:01:25.9]} 25... c5 {[%clk 0:00:08]} 26.
Bd5+ {[%clk 0:01:24.7]} 26... Kh8 {[%clk 0:00:06.8]} 27. Rc2 {[%clk 0:01:21.5]}
27... Rc8 {[%clk 0:00:06.5]} 28. Nf3 {[%clk 0:01:08.9]} 28... e4 {[%clk
0:00:06.1]} 29. Nd2 {[%clk 0:01:07.1]} 29... Kg7 {[%clk 0:00:04]} 30. Bc4 {[%clk
0:01:05]} 30... Bb7 {[%clk 0:00:03.3]} 31. Nb3 {[%clk 0:01:03.7]} 31... Kf6
{[%clk 0:00:02.6]} 32. Kf1 {[%clk 0:00:58.8]} 32... Ke5 {[%clk 0:00:01.1]} 33.
Ke1 {[%clk 0:00:58.5]} 1-0